lending/lending_fUSD_20240816
["ID","MTS","AMOUNT","RATE_DAILY","PERIOD"]
[335056273,1723795843271,-250.0,0.0002253,2]
[335056274,1723795843281,-4365.81761355,0.00023531,3]
[335056275,1723795843290,-150.0,0.00023534,4]
[335056276,1723795843299,-150.0,0.00023534,4]
[335056277,1723795843309,-150.0,0.00023534,4]
[335056278,1723795843318,-150.0,0.00023534,4]
[335056279,1723795843328,-152.9703349,0.00023537,2]
[335056280,1723795843337,-150.0,0.00023538,2]
[335056281,1723795843347,-10616.0036721,0.00023541,3]
[335056282,1723795843356,-150.0,0.00023541,2]
[335056283,1723795843365,-150.0,0.00023548,2]
[335056284,1723795843375,-150.0,0.00023549,2]
[335056285,1723795843384,-12536.3509233,0.0002355,3]
[335056286,1723795843394,-26.50076095,0.0002355,2]
[335056304,1723795843792,-138.655042,0.0002355,2]
[335056307,1723795843804,-441.344958,0.00023551,3]
[335056538,1723795846268,-730.46,0.0002352,2]
[335056540,1723795846277,-1727.53381831,0.00023551,3]
[335056557,1723795846427,-730.46,0.0002352,2]
[335056559,1723795846436,-55954.57162,0.00023551,3]
[335056562,1723795846447,-79776.40976069,0.00023551,3]
[335056564,1723795846456,-37609.05277,0.00023551,3]
[335056566,1723795846465,-4985.18,0.00023555,2]
[335056567,1723795846475,-388.12409546,0.00023558,2]
[335056569,1723795846484,-2000.0,0.0002356,2]
[335056571,1723795846493,-2000.0,0.0002356,2]
[335056573,1723795846502,-2000.0,0.0002356,2]
[335056574,1723795846512,-2000.0,0.0002356,2]
[335056575,1723795846522,-2000.0,0.0002356,2]
[335056576,1723795846531,-2000.0,0.0002356,2]
[335056577,1723795846540,-2000.0,0.0002356,2]
[335056578,1723795846549,-2000.0,0.0002356,2]
[335056579,1723795846559,-1000.0,0.0002356,2]
[335056580,1723795846569,-1000.0,0.0002356,8]
[335056581,1723795846578,-2000.0,0.0002356,2]
[335056582,1723795846587,-2000.0,0.0002356,2]
[335056583,1723795846596,-171.10957037,0.0002356,7]
[335056584,1723795846605,-1000.0,0.0002356,2]
[335056586,1723795846614,-343.40235149,0.00023561,2]
[335056587,1723795846624,-93211.91308881,0.00023561,11]
[335056588,1723795846635,-34139.064,0.00023561,11]
[335056589,1723795846650,-146904.84111821,0.00023561,11]
[335056590,1723795846659,-154.515367,0.00023561,7]
[335056591,1723795846669,-151.0,0.00023561,7]
[335056592,1723795846678,-500.0,0.00023561,7]
[335056593,1723795846687,-500.0,0.00023561,7]
[335056594,1723795846696,-500.0,0.00023561,7]
[335056596,1723795846709,-431.51589437,0.00023561,7]
[335056597,1723795846719,-500.0,0.00023561,7]
[335056598,1723795846728,-500.0,0.00023561,7]
[335056599,1723795846737,-500.0,0.00023561,7]
[335056600,1723795846748,-493.72813474,0.00023561,7]
[335056601,1723795846758,-151.0,0.00023561,7]
[335056602,1723795846767,-151.0,0.00023561,7]
[335056603,1723795846777,-151.0,0.00023561,7]
[335056604,1723795846788,-151.0,0.00023561,7]
[335056605,1723795846797,-151.0,0.00023561,7]
[335056606,1723795846806,-151.0,0.00023561,7]
[335056607,1723795846816,-151.0,0.00023561,7]
[335056608,1723795846825,-300.893408,0.00023561,7]
[335056609,1723795846835,-500.0,0.00023561,7]
[335056610,1723795846844,-500.0,0.00023561,7]
[335056611,1723795846853,-521.69673044,0.00023561,7]
[335056612,1723795846864,-500.0,0.00023561,7]
[335056613,1723795846873,-1034.0,0.00023561,7]
[335056614,1723795846882,-613.18,0.00023561,7]
[335056615,1723795846892,-1034.0,0.00023561,7]
[335056616,1723795846901,-613.18,0.00023561,7]
[335056617,1723795846910,-1034.0,0.00023561,7]
[335056618,1723795846920,-613.18,0.00023561,7]
[335056619,1723795846929,-1034.0,0.00023561,7]
[335056620,1723795846938,-613.18,0.00023561,7]
[335056622,1723795846948,-1034.0,0.00023561,7]
[335056623,1723795846957,-613.18,0.00023561,7]
[335056625,1723795846966,-1034.0,0.00023561,7]
[335056627,1723795846975,-613.18,0.00023561,7]
[335056629,1723795846984,-1034.0,0.00023561,7]
[335056631,1723795846994,-613.18,0.00023561,7]
[335056633,1723795847003,-1034.0,0.00023561,7]
[335056635,1723795847012,-613.18,0.00023561,7]
[335056637,1723795847022,-613.18,0.00023561,7]
[335056639,1723795847031,-1034.0,0.00023561,7]
[335056641,1723795847040,-613.18,0.00023561,7]
[335056643,1723795847049,-1034.0,0.00023561,7]
[335056645,1723795847058,-613.18,0.00023561,7]
[335056647,1723795847067,-613.18,0.00023561,7]
[335056649,1723795847076,-1034.0,0.00023561,7]
[335056651,1723795847086,-153.23054724,0.00023561,7]
[335056659,1723795847154,-459.94945276,0.00023561,7]
[335056661,1723795847163,-1034.0,0.00023561,7]
[335056663,1723795847172,-1034.0,0.00023561,7]
[335056665,1723795847181,-613.18,0.00023561,7]
[335056667,1723795847191,-1034.0,0.00023561,7]
[335056669,1723795847200,-501.10950662,0.00023561,7]
[335056671,1723795847209,-1034.0,0.00023561,7]
[335056673,1723795847218,-613.18,0.00023561,7]
[335056675,1723795847227,-1034.0,0.00023561,7]
[335056677,1723795847236,-613.18,0.00023561,7]
[335056679,1723795847246,-1034.0,0.00023561,7]
[335056681,1723795847255,-613.18,0.00023561,7]
[335056683,1723795847264,-1034.0,0.00023561,7]
[335056685,1723795847273,-613.18,0.00023561,7]
[335056687,1723795847282,-1034.0,0.00023561,7]
[335056689,1723795847291,-613.18,0.00023561,7]
[335056691,1723795847300,-1034.0,0.00023561,7]
[335056693,1723795847309,-613.18,0.00023561,7]
[335056695,1723795847319,-1034.0,0.00023561,7]
[335056697,1723795847328,-613.18,0.00023561,7]
[335056699,1723795847337,-1034.0,0.00023561,7]
[335056701,1723795847346,-613.18,0.00023561,7]
[335056703,1723795847354,-1034.0,0.00023561,7]
[335056705,1723795847364,-613.18,0.00023561,7]
[335056707,1723795847374,-1034.0848929,0.00023561,7]
[335056709,1723795847383,-613.28374833,0.00023561,7]
[335056711,1723795847392,-500.0,0.00023561,7]
[335056713,1723795847402,-503.56903771,0.00023561,7]
[335056715,1723795847411,-1169.41,0.00023561,7]
[335056717,1723795847420,-1169.41,0.00023561,7]
[335056719,1723795847431,-812.73,0.00023561,7]
[335056721,1723795847440,-812.73,0.00023561,7]
[335056723,1723795847449,-1169.41,0.00023561,7]
[335056725,1723795847458,-151.0,0.00023561,7]
[335056726,1723795847468,-812.73,0.00023561,7]
[335056728,1723795847478,-1169.41,0.00023561,7]
[335056730,1723795847487,-812.73,0.00023561,7]
[335056732,1723795847498,-1169.41,0.00023561,7]
[335056735,1723795847507,-812.73,0.00023561,7]
[335056737,1723795847517,-812.73,0.00023561,7]
[335056739,1723795847527,-1169.41,0.00023561,7]
[335056741,1723795847536,-812.73,0.00023561,7]
[335056743,1723795847546,-1169.41,0.00023561,7]
[335056745,1723795847556,-812.73,0.00023561,7]
[335056747,1723795847565,-1169.41,0.00023561,7]
[335056749,1723795847574,-812.73,0.00023561,7]
[335056751,1723795847585,-1169.41,0.00023561,7]
[335056753,1723795847594,-812.73,0.00023561,7]
[335056755,1723795847603,-659.84699324,0.00023561,7]
[335056764,1723795847679,-509.56300676,0.00023561,7]
[335056766,1723795847689,-812.73,0.00023561,7]
[335056768,1723795847699,-1169.41,0.00023561,7]
[335056770,1723795847712,-1169.41,0.00023561,7]
[335056772,1723795847721,-812.73,0.00023561,7]
[335056773,1723795847731,-1169.41,0.00023561,7]
[335056776,1723795847744,-812.73,0.00023561,7]
[335056777,1723795847755,-1169.41,0.00023561,7]
[335056779,1723795847764,-812.73,0.00023561,7]
[335056781,1723795847775,-812.73,0.00023561,7]
[335056783,1723795847785,-1169.41,0.00023561,7]
[335056785,1723795847795,-812.73,0.00023561,7]
[335056788,1723795847806,-1169.41,0.00023561,7]
[335056790,1723795847816,-1169.41,0.00023561,7]
[335056792,1723795847825,-812.73,0.00023561,7]
[335056794,1723795847835,-1169.41,0.00023561,7]
[335056796,1723795847845,-812.73,0.00023561,7]
[335056798,1723795847855,-1169.41,0.00023561,7]
[335056800,1723795847864,-812.73,0.00023561,7]
[335056802,1723795847874,-1169.41,0.00023561,7]
[335056804,1723795847884,-812.73,0.00023561,7]
[335056806,1723795847893,-1169.41,0.00023561,7]
[335056808,1723795847903,-812.73,0.00023561,7]
[335056810,1723795847912,-1169.41,0.00023561,7]
[335056812,1723795847921,-1169.41,0.00023561,7]
[335056813,1723795847930,-1169.54687783,0.00023561,7]
[335056815,1723795847942,-812.73,0.00023561,7]
[335056818,1723795847952,-812.73,0.00023561,7]
[335056820,1723795847961,-812.93567866,0.00023561,7]
[335056822,1723795847971,-500.0,0.00023561,7]
[335056824,1723795847981,-134.9132513,0.00023561,7]
[335056881,1723796010859,150.0,0.00023577,120]
[335056887,1723796131880,150.0,0.00024498,120]
[335056896,1723796756843,2494.95487903,6.94e-05,2]
[335056943,1723797032425,-245.01734399,0.000101,2]
[335056944,1723797032434,-1200.0,0.000106,3]
[335056945,1723797032446,-2500.0,0.000107,3]
[335056946,1723797032455,-3305.20979964,0.000108,3]
[335056947,1723797032466,-394.79020036,0.000108,3]
[335056948,1723797032476,-5000.0,0.000109,3]
[335056949,1723797032486,-150.0,0.00010999,2]
[335056950,1723797032496,-141305.63997901,0.00011,2]
[335056951,1723797032508,-300317.48450243,0.00011,2]
[335056952,1723797032520,-882.015,0.00011,2]
[335056953,1723797032564,-3956.26353275,0.00011,2]
[335056959,1723797038515,-3450.49798637,0.00011,2]
[335056960,1723797038546,-1612.92826726,0.00011,2]
[335056961,1723797038653,-134.21803997,0.00011,2]
[335056962,1723797038664,-966.78671617,0.00011,2]
[335056963,1723797038675,-958.4505403,0.00011,2]
[335056964,1723797038710,-1024.07783907,0.00011,2]
[335056965,1723797038722,-16453.60772796,0.00011,2]
[335056966,1723797038734,-176148.07848042,0.00011,2]
[335056967,1723797038811,-41970.7537856,0.00011,2]
[335056968,1723797038823,-3163.29177813,0.00011,2]
[335056969,1723797038834,-780.44980245,0.00011,2]
[335056970,1723797038846,-1803.52865084,0.00011,2]
[335056971,1723797038857,-570.23685725,0.00011,2]
[335056972,1723797038868,-9011.29504231,0.00011,2]
[335056973,1723797038903,-12504.31307594,0.00011,2]
[335056974,1723797038915,-31167.70080278,0.00011,2]
[335057014,1723797040854,-687.79291592,0.00011,2]
[335057015,1723797040866,-6032.55630432,0.00011,2]
[335057016,1723797040879,-342.29554604,0.00011,2]
[335057017,1723797040926,-379.9422459,0.00011,2]
[335057018,1723797041036,-976.22792937,0.00011,2]
[335057019,1723797041101,-39282.21591552,0.00011,2]
[335057020,1723797041161,-3054.19398321,0.00011,2]
[335057056,1723797043903,-293478.18500035,0.00011,2]
[335057057,1723797043915,-3898.14041674,0.00011,2]
[335057059,1723797043927,-673.14206966,0.00011,2]
[335057062,1723797043938,-27908.50961047,0.00011,2]
[335057065,1723797043949,-469.6500491,0.00011,2]
[335057084,1723797046507,-50614.87568545,0.00011,2]
[335057085,1723797046519,-8515.89,0.00011,2]
[335057086,1723797046530,-41824.56819087,0.00011,2]
[335057087,1723797046540,-11537.57862452,0.00011,2]
[335057088,1723797046551,-3895.98548099,0.00011,2]
[335057089,1723797046563,-5876.5,0.00011,2]
[335057090,1723797046629,-319.56945475,0.00011,2]
[335057091,1723797046641,-1078.57073008,0.00011,2]
[335057092,1723797046652,-1057.49834222,0.00011,2]
[335057197,1723797210864,150.0,0.00025,120]
[335057201,1723797257699,379.37,8.227e-05,2]
[335057203,1723797270760,150.0,0.00023751,120]
[335057222,1723797561259,150.0,9.474e-05,2]
[335057223,1723797571327,150.0,0.00024824,120]
[335057249,1723797941853,360.4,9.71e-05,2]
[335057274,1723798112405,-658.1228,0.0001,2]
[335057275,1723798112442,-125.44936379,0.0001,2]
[335057283,1723798186933,-424.55063621,0.0001,2]
[335057284,1723798186961,-300.06942991,0.0001,2]
[335057286,1723798186988,-170.50203081,0.0001,2]
[335057288,1723798187017,-295.68069646,0.0001,2]
[335057293,1723798231645,-338.5425176,0.0001,2]
[335057294,1723798231654,-26.80958846,0.0001,2]
[335057295,1723798231693,-135.92051432,0.0001,2]
[335057296,1723798231702,-200.0,0.00010324,2]
[335057297,1723798231713,-600.0,0.00010409,2]
[335057298,1723798231723,-3618.23,0.00010455,2]
[335057299,1723798231733,-1297.98969561,0.00010471,2]
[335057300,1723798231744,-155.0,0.00010471,2]
[335057301,1723798231755,-175.47,0.00010495,2]
[335057302,1723798231765,-228.4394409,0.00010699,2]
[335057303,1723798231775,-600.0,0.000107,3]
[335057304,1723798231784,-1200.0,0.000108,3]
[335057305,1723798231799,-150.0,0.00010849,2]
[335057306,1723798231808,-304.06728316,0.00010888,2]
[335057307,1723798231817,-175.2646,0.0001089,2]
[335057308,1723798231827,-338.53203038,0.0001089,2]
[335057309,1723798231836,-499.99,0.00010899,2]
[335057310,1723798231845,-1800.0,0.000109,3]
[335057311,1723798231855,-2641.75,0.000109,2]
[335057312,1723798231864,-317.61944198,0.000109,2]
[335057313,1723798231873,-390.02555684,0.00010927,2]
[335057314,1723798231882,-155.0,0.00010949,2]
[335057315,1723798231892,-379.63,0.00010959,2]
[335057316,1723798231901,-862.83,0.00010959,2]
[335057317,1723798231911,-9058.67091685,0.0001099,2]
[335057318,1723798231921,-151.06328511,0.00010997,2]
[335057319,1723798231932,-150.0,0.00010999,2]
[335057320,1723798231942,-83365.04859057,0.00011,2]
[335057321,1723798231959,-4041.6921742,0.00011,2]
[335057322,1723798231970,-295.315,0.00011,2]
[335057323,1723798231993,-41262.24459102,0.00011,2]
[335057324,1723798232004,-319025.12182282,0.00011,2]
[335057325,1723798232015,-719.4241955,0.00011,2]
[335057326,1723798232028,-3125.27043744,0.00011,2]
[335057327,1723798232039,-643.659991,0.00011,2]
[335057331,1723798237575,-1225.96749496,0.00010927,2]
[335057332,1723798237585,-374.03250504,0.00011,2]
[335057333,1723798237596,-3742.70217563,0.00011,2]
[335057334,1723798237634,-976.96776414,0.00011,2]
[335057335,1723798237692,-111429.34479412,0.00011,2]
[335057336,1723798237704,-534.02114835,0.00011,2]
[335057337,1723798237752,-1356.00596654,0.00011,2]
[335057338,1723798237765,-6084.77401869,0.00011,2]
[335057339,1723798237779,-828.69961957,0.00011,2]
[335057340,1723798237814,-12608.96321469,0.00011,2]
[335057341,1723798237826,-2864.18590087,0.00011,2]
[335057343,1723798237871,-280.74761283,0.00011,2]
[335057370,1723798239682,-1480.21316393,0.00011,2]
[335057371,1723798239741,-5894.4,0.00011,2]
[335057372,1723798239805,-1021.516128,0.00011,2]
[335057373,1723798239858,-135911.22887572,0.00011,2]
[335057374,1723798239917,-489.8690884,0.00011,2]
[335057375,1723798239929,-795.59884324,0.00011,2]
[335057376,1723798239981,-2936.22,0.00011,2]
[335057377,1723798239993,-3756.6679994,0.00011,2]
[335057378,1723798240036,-364.62296221,0.00011,2]
[335057379,1723798240098,-6538.66543029,0.00011,2]
[335057394,1723798243896,-1702618.72391947,0.00011,2]
[335057395,1723798243908,-500.0,0.00011,2]
[335057396,1723798243918,-189.46,0.00011354,2]
[335057397,1723798243927,-250.0,0.00011414,2]
[335057398,1723798243938,-17076.64606279,0.00011423,2]
[335057399,1723798243949,-6823.35393721,0.00011423,2]
[335057400,1723798243959,-600.0,0.0001171,2]
[335057401,1723798243968,-250.0,0.00011727,2]
[335057402,1723798243977,-2500.0,0.000119,4]
[335057403,1723798243986,-200.0,0.00011953,2]
[335057404,1723798243995,-360.4,0.00011974,2]
[335057405,1723798244005,-11550.0,0.00011999,2]
[335057406,1723798244014,-5000.0,0.00012,2]
[335057407,1723798244023,-600.0,0.00012,2]
[335057408,1723798244033,-715.85,0.00012,2]
[335057409,1723798244042,-715.85,0.00012,2]
[335057410,1723798244059,-715.85,0.00012,2]
[335057411,1723798244069,-715.85,0.00012,2]
[335057412,1723798244078,-715.85,0.00012,2]
[335057413,1723798244087,-715.85,0.00012,2]
[335057414,1723798244096,-715.85,0.00012,2]
[335057415,1723798244105,-715.85,0.00012,2]
[335057416,1723798244115,-715.85,0.00012,2]
[335057417,1723798244124,-715.85,0.00012,2]
[335057418,1723798244133,-715.85,0.00012,2]
[335057419,1723798244142,-715.85,0.00012,2]
[335057420,1723798244151,-715.85,0.00012,2]
[335057421,1723798244160,-715.85,0.00012,2]
[335057422,1723798244170,-715.85,0.00012,2]
[335057423,1723798244178,-715.85,0.00012,2]
[335057424,1723798244188,-715.85,0.00012,2]
[335057425,1723798244197,-1257.28230314,0.00012089,2]
[335057426,1723798244206,-300.06942991,0.00012121,2]
[335057427,1723798244215,-300.06942991,0.00012121,2]
[335057428,1723798244224,-400.0,0.00012134,2]
[335057429,1723798244233,-5000.0,0.00012165,2]
[335057430,1723798244242,-600.0,0.00013012,2]
[335057431,1723798244252,-348.26413265,0.00013292,2]
[335057432,1723798244263,-400.0,0.0001365,2]
[335057433,1723798244272,-200.0,0.00013699,2]
[335057434,1723798244281,-272194.9214614,0.000138,2]
[335057435,1723798244294,-353.4100011,0.000138,2]
[335057442,1723798245977,-715.85,0.00012,2]
[335057443,1723798245987,-715.85,0.00012,2]
[335057444,1723798245998,-715.85,0.00012,2]
[335057445,1723798246009,-715.85,0.00012,2]
[335057446,1723798246020,-715.85,0.00012,2]
[335057447,1723798246031,-715.85,0.00012,2]
[335057448,1723798246041,-715.85,0.00012,2]
[335057449,1723798246054,-715.85,0.00012,2]
[335057450,1723798246064,-165.1,0.00012,2]
[335057451,1723798246157,-550.75,0.00012,2]
[335057452,1723798246167,-715.85,0.00012,2]
[335057453,1723798246177,-124103.0571335,0.000138,2]
[335057454,1723798246186,-493621.72245317,0.00013899,2]
[335057455,1723798246196,-3100.0,0.000139,5]
[335057456,1723798246205,-34588.97637979,0.000139,2]
[335057457,1723798246216,-6113.08888227,0.000139,2]
[335057463,1723798313989,2000.0,0.00025,120]
[335057480,1723798773130,-3145.20224833,0.00015,10]
[335057481,1723798838130,155.0,0.00018182,60]
[335057482,1723798873294,301.0,0.00023278,120]
[335057483,1723798874370,301.0,0.00023268,120]
[335057484,1723798875481,301.0,0.00023258,120]
[335057485,1723798875599,301.0,0.00023278,120]
[335057486,1723798875841,301.0,0.00023268,120]
[335057487,1723798876509,301.0,0.00023258,120]
[335057488,1723798876984,301.0,0.00023278,120]
[335057489,1723798877324,301.0,0.00023268,120]
[335057490,1723798877882,301.0,0.00023278,120]
[335057491,1723798878313,309.0,0.00023268,120]
[335057508,1723799324741,-468.03085307,0.0001,2]
[335057539,1723799431791,-155.0,9.999e-05,2]
[335057540,1723799431800,-81.96914693,0.0001,2]
[335057541,1723799431810,-300.06942991,0.0001,2]
[335057542,1723799431819,-150.47686544,0.0001,2]
[335057543,1723799431829,-155.0,0.00010026,2]
[335057544,1723799431838,-2251.4869,0.000109,2]
[335057545,1723799431848,-433.2501,0.000109,2]
[335057546,1723799431857,-2087.38219192,0.00012938,2]
[335057547,1723799431866,-348.26413265,0.00013391,2]
[335057548,1723799431876,-388.05858524,0.00013453,2]
[335057549,1723799431885,-300.0,0.00013597,2]
[335057550,1723799431894,-8505.292,0.00013598,2]
[335057551,1723799431908,-916.59,0.00013799,2]
[335057552,1723799431918,-150.0,0.00013799,2]
[335057553,1723799431927,-499.99,0.00013799,2]
[335057554,1723799431938,-12017.1867,0.000138,2]
[335057555,1723799431949,-117.46938651,0.000138,2]
[335057556,1723799431963,-2624.78611349,0.000138,2]
[335057557,1723799431972,-453.93284773,0.00013851,2]
[335057558,1723799431984,-299.99,0.0001387,2]
[335057559,1723799431993,-588.24824,0.000139,2]
[335057560,1723799432003,-159.23,0.00013973,2]
[335057561,1723799432012,-153.69,0.00013973,2]
[335057562,1723799432022,-253.08,0.00013973,2]
[335057563,1723799432033,-304.03367489,0.00014782,2]
[335057564,1723799432043,-512.72019683,0.00014782,2]
[335057565,1723799432054,-733.02391346,0.00014782,2]
[335057566,1723799432066,-420.0,0.00014902,2]
[335057567,1723799432077,-841.0,0.00015,2]
[335057568,1723799432087,-3243.0,0.00015,2]
[335057569,1723799432096,-200.0,0.00015486,2]
[335057570,1723799432105,-313.0,0.00016332,2]
[335057571,1723799432116,-360.15,0.00016396,2]
[335057572,1723799432126,-266.37,0.00017582,2]
[335057574,1723799432136,-240.0,0.00017626,2]
[335057575,1723799432146,-250.0,0.00017719,2]
[335057576,1723799432156,-332.79,0.00017912,2]
[335057577,1723799432166,-172.51,0.00017957,2]
[335057578,1723799432175,-250.0,0.00017999,2]
[335057579,1723799432185,-157.96,0.00018069,2]
[335057580,1723799432195,-23900.0,0.00018071,2]
[335057581,1723799432205,-192.77,0.0001814,2]
[335057582,1723799432216,-760.0,0.00018374,2]
[335057583,1723799432226,-1210.0,0.000184,2]
[335057584,1723799432237,-360.0,0.00018581,2]
[335057585,1723799432246,-360.15,0.0001866,2]
[335057586,1723799432260,-588.24825,0.000189,2]
[335057587,1723799432269,-500.0,0.00018903,2]
[335057588,1723799432278,-10577.0,0.000194,5]
[335057589,1723799432287,-240.0,0.00019829,2]
[335057590,1723799432296,-500.0,0.00019999,2]
[335057591,1723799432305,-500.0,0.00019999,2]
[335057592,1723799432315,-500.0,0.00019999,2]
[335057593,1723799432325,-500.0,0.00019999,2]
[335057594,1723799432334,-1107.43434204,0.0002,14]
[335057595,1723799432343,-1729.318,0.0002024,2]
[335057596,1723799432352,-260.0093,0.0002024,2]
[335057597,1723799432361,-1000.0,0.00020295,2]
[335057598,1723799432371,-155.0,0.0002034,3]
[335057599,1723799432380,-253.08,0.00020447,2]
[335057600,1723799432389,-624.61862578,0.00020583,2]
[335057601,1723799432398,-624.61862578,0.00020642,2]
[335057602,1723799432408,-760.0,0.00020671,2]
[335057603,1723799432417,-360.0,0.00020904,2]
[335057604,1723799432426,-360.15,0.00020924,2]
[335057605,1723799432435,-500.0,0.00021095,2]
[335057606,1723799432444,-426.55,0.00021096,2]
[335057607,1723799432454,-356.66,0.00021096,2]
[335057608,1723799432463,-531.19,0.00021096,2]
[335057609,1723799432472,-426.55,0.00021096,2]
[335057610,1723799432481,-531.19,0.00021096,2]
[335057611,1723799432492,-356.66,0.00021096,2]
[335057612,1723799432501,-530.83,0.00021096,2]
[335057613,1723799432510,-356.66,0.00021096,2]
[335057614,1723799432520,-426.55,0.00021096,2]
[335057615,1723799432529,-426.55,0.00021096,2]
[335057616,1723799432538,-356.66,0.00021096,2]
[335057617,1723799432548,-426.55,0.00021096,2]
[335057618,1723799432557,-241.02,0.00021096,2]
[335057619,1723799432566,-425.27,0.00021096,2]
[335057620,1723799432575,-155.0,0.00021399,2]
[335057621,1723799432584,-1924.0,0.0002145,2]
[335057622,1723799432594,-1257.0,0.0002145,2]
[335057623,1723799432603,-1542.0,0.0002145,2]
[335057624,1723799432612,-622.0,0.0002145,2]
[335057625,1723799432621,-509.198,0.0002145,2]
[335057626,1723799432630,-1137.693,0.0002145,2]
[335057627,1723799432640,-164.756,0.0002145,2]
[335057628,1723799432649,-647.223,0.0002145,2]
[335057629,1723799432658,-815.087,0.0002145,2]
[335057630,1723799432668,-551.0,0.0002145,2]
[335057631,1723799432677,-1895.0,0.0002145,2]
[335057632,1723799432687,-150.0,0.0002145,2]
[335057633,1723799432697,-1178.0,0.0002145,2]
[335057634,1723799432706,-3292.0,0.0002145,2]
[335057635,1723799432716,-247.0,0.0002145,2]
[335057636,1723799432727,-743.42,0.0002189,3]
[335057637,1723799432738,-3317.5461,0.000219,2]
[335057638,1723799432747,-340.3042,0.000219,2]
[335057639,1723799432756,-150.16,0.00021918,2]
[335057640,1723799432766,-157.74,0.00021918,2]
[335057641,1723799432776,-351.02300121,0.00021932,2]
[335057642,1723799432787,-41728.46627167,0.00022,7]
[335057643,1723799432797,-240.0,0.00022032,2]
[335057644,1723799432807,-351.02300115,0.00022071,2]
[335057645,1723799432818,-500.0,0.00022191,2]
[335057646,1723799432827,-500.0,0.00022191,2]
[335057647,1723799432837,-500.0,0.00022191,2]
[335057648,1723799432846,-500.0,0.00022191,2]
[335057649,1723799432857,-351.02300115,0.00022211,2]
[335057650,1723799432867,-421.19,0.00022329,2]
[335057651,1723799432877,-421.19,0.00022329,2]
[335057652,1723799432886,-420.89,0.00022329,2]
[335057653,1723799432896,-151.04,0.00022455,2]
[335057654,1723799432909,-151.04,0.00022455,2]
[335057655,1723799432918,-130120.09336362,0.00022465,7]
[335057656,1723799432930,-5420.3610252,0.00022465,7]
[335057657,1723799433108,-308.06435349,0.00022465,7]
[335057662,1723799437809,-351.02300115,0.0002235,2]
[335057663,1723799437818,-1319.03457523,0.00022465,7]
[335057664,1723799437908,-315.63403254,0.00022465,7]
[335057665,1723799437919,-20265.086504,0.00022465,7]
[335057666,1723799438064,-4790.24894369,0.00022465,7]
[335057667,1723799438175,-13301.34632884,0.00022465,7]
[335057669,1723799438187,-10155.31,0.00022465,7]
[335057671,1723799438197,-15773.07401685,0.00022465,7]
[335057679,1723799440200,-1257.95663297,0.00012121,2]
[335057680,1723799440210,-123987.91898566,0.00022465,7]
[335057681,1723799440222,-87108.1858664,0.00022465,7]
[335057682,1723799440233,-1061.64,0.00022466,2]
[335057683,1723799440248,-150.0,0.00022466,2]
[335057684,1723799440258,-150.0,0.00022466,2]
[335057686,1723799440267,-150.0,0.00022466,2]
[335057688,1723799440277,-150.0,0.00022466,2]
[335057690,1723799440286,-150.0,0.00022466,2]
[335057692,1723799440295,-301.12,0.00022466,2]
[335057694,1723799440305,-351.02300115,0.0002249,2]
[335057696,1723799440315,-1000.0,0.000227,2]
[335057698,1723799440325,-3575.0283,0.000228,2]
[335057700,1723799440334,-7500.0,0.000228,2]